[Event "*** Titled Tuesday Blitz"]
[Site "Chess.com"]
[Date "2021.03.02"]
[Round "8"]
[White "Homyakova_Elena"]
[Black "SanchezKelvin"]
[Result "0-1"]
[WhiteElo "2294"]
[BlackElo "2435"]
[TimeControl "180+1"]
[EndTime "11:30:00 PST"]
[Termination "SanchezKelvin won on time"]

1. e4 {[%clk 0:03:00.9]} 1... c5 {[%clk 0:02:59.9]} 2. Nf3 {[%clk 0:03:00.6]}
2... d6 {[%clk 0:02:59.6]} 3. d4 {[%clk 0:03:00.7]} 3... cxd4 {[%clk 0:03:00.5]}
4. Nxd4 {[%clk 0:03:01.3]} 4... Nf6 {[%clk 0:03:00.3]} 5. Nc3 {[%clk 0:03:01.7]}
5... g6 {[%clk 0:03:00.5]} 6. Be3 {[%clk 0:03:01.4]} 6... Bg7 {[%clk 0:03:00.7]}
7. f3 {[%clk 0:03:01.9]} 7... O-O {[%clk 0:03:01.4]} 8. Qd2 {[%clk 0:03:02.2]}
8... Nc6 {[%clk 0:03:02.1]} 9. O-O-O {[%clk 0:03:02.1]} 9... Nxd4 {[%clk
0:03:00.7]} 10. Bxd4 {[%clk 0:03:01]} 10... Be6 {[%clk 0:03:01.3]} 11. h4 {[%clk
0:02:59.2]} 11... Qa5 {[%clk 0:02:56.8]} 12. Kb1 {[%clk 0:02:55.7]} 12... Rfc8
{[%clk 0:02:56.1]} 13. Bxf6 {[%clk 0:02:26.1]} 13... Rxc3 {[%clk 0:02:53.3]} 14.
Qxc3 {[%clk 0:02:15]} 14... Qxa2+ {[%clk 0:02:52.3]} 15. Kc1 {[%clk 0:02:15.1]}
15... Bxf6 {[%clk 0:02:41.9]} 16. Qa3 {[%clk 0:02:14.4]} 16... Qxa3 {[%clk
0:02:41.7]} 17. bxa3 {[%clk 0:02:15]} 17... Rc8 {[%clk 0:02:41.9]} 18. Kd2
{[%clk 0:01:57.1]} 18... Rc3 {[%clk 0:02:34.4]} 19. a4 {[%clk 0:01:52.7]} 19...
Ra3 {[%clk 0:02:33.8]} 20. Bb5 {[%clk 0:01:37.9]} 20... a6 {[%clk 0:02:33]} 21.
Bd3 {[%clk 0:01:36.8]} 21... Rxa4 {[%clk 0:02:32.3]} 22. Rb1 {[%clk 0:01:30.6]}
22... b5 {[%clk 0:02:31.4]} 23. h5 {[%clk 0:01:27.6]} 23... g5 {[%clk
0:01:52.2]} 24. h6 {[%clk 0:01:18]} 24... Be5 {[%clk 0:01:49.8]} 25. Ke3 {[%clk
0:01:08.7]} 25... f6 {[%clk 0:01:46.3]} 26. Kf2 {[%clk 0:00:53.6]} 26... b4
{[%clk 0:01:42.5]} 27. g3 {[%clk 0:00:41.4]} 27... a5 {[%clk 0:01:41.2]} 28. Kg2
{[%clk 0:00:15.4]} 28... Ra2 {[%clk 0:01:33.9]} 29. Rhf1 {[%clk 0:00:13.8]}
29... b3 {[%clk 0:01:31]} 30. Rf2 {[%clk 0:00:12.4]} 30... Bd4 {[%clk
0:01:25.6]} 31. Re2 {[%clk 0:00:12.2]} 31... b2 {[%clk 0:01:25.5]} 32. f4 {[%clk
0:00:10.6]} 32... gxf4 {[%clk 0:01:20.8]} 33. gxf4 {[%clk 0:00:11.5]} 33... Ra1
{[%clk 0:01:19.2]} 34. c3 {[%clk 0:00:11.9]} 34... Rxb1 {[%clk 0:01:17.5]} 35.
Bxb1 {[%clk 0:00:12.6]} 35... Bxc3 {[%clk 0:01:17.5]} 36. Rc2 {[%clk 0:00:11.8]}
36... Bd4 {[%clk 0:01:14.4]} 37. Rc7 {[%clk 0:00:11.6]} 37... Kf7 {[%clk
0:01:09.9]} 38. f5 {[%clk 0:00:11.5]} 38... Bb3 {[%clk 0:01:08.1]} 39. Rb7
{[%clk 0:00:09.1]} 39... a4 {[%clk 0:01:07.9]} 40. Rb4 {[%clk 0:00:09.7]} 40...
Be3 {[%clk 0:01:06.2]} 41. Kf3 {[%clk 0:00:09.1]} 41... Bxh6 {[%clk 0:01:05.8]}
42. Kg4 {[%clk 0:00:07]} 42... Bd2 {[%clk 0:01:04.7]} 43. Rb7 {[%clk 0:00:06.4]}
43... Bd1+ {[%clk 0:01:02.1]} 44. Kg3 {[%clk 0:00:06]} 44... a3 {[%clk
0:00:57.7]} 45. Ba2+ {[%clk 0:00:05.9]} 45... Kg7 {[%clk 0:00:53.4]} 46. Rxe7+
{[%clk 0:00:05.6]} 46... Kh6 {[%clk 0:00:53.5]} 47. Kh4 {[%clk 0:00:03.6]} 47...
Be1+ {[%clk 0:00:52.7]} 48. Kh3 {[%clk 0:00:03.6]} 48... Bc2 {[%clk 0:00:49.3]}
49. Kg4 {[%clk 0:00:03]} 49... b1=Q {[%clk 0:00:46.2]} 50. Bxb1 {[%clk
0:00:03.1]} 50... Bxb1 {[%clk 0:00:47]} 51. Re6 {[%clk 0:00:02.6]} 51... Bc3
{[%clk 0:00:46.1]} 0-1

[Event "*** Titled Tuesday Blitz"]
[Site "Chess.com"]
[Date "2021.03.02"]
[Round "8"]
[White "WonderChampion"]
[Black "publicaccountcze"]
[Result "1/2-1/2"]
[WhiteElo "2084"]
[BlackElo "2201"]
[TimeControl "180+1"]
[EndTime "11:30:00 PST"]
[Termination "Game drawn by agreement"]

1. d4 {[%clk 0:03:00.9]} 1... d5 {[%clk 0:02:58.4]} 2. Nf3 {[%clk 0:02:58.6]}
2... e6 {[%clk 0:02:58.2]} 3. e3 {[%clk 0:02:57.9]} 3... c5 {[%clk 0:02:57.9]}
4. Bb5+ {[%clk 0:02:56]} 4... Nc6 {[%clk 0:02:54.2]} 5. Ne5 {[%clk 0:02:52.6]}
5... Bd7 {[%clk 0:02:50.3]} 6. Nxd7 {[%clk 0:02:51.1]} 6... Qxd7 {[%clk
0:02:48.9]} 7. dxc5 {[%clk 0:02:45.6]} 7... a6 {[%clk 0:02:47.9]} 8. Bxc6 {[%clk
0:02:44.7]} 8... Qxc6 {[%clk 0:02:46.8]} 9. O-O {[%clk 0:02:42.3]} 9... Bxc5
{[%clk 0:02:43.8]} 10. Nc3 {[%clk 0:02:40.6]} 10... Nf6 {[%clk 0:02:41.1]} 11.
Bd2 {[%clk 0:02:39.1]} 11... O-O {[%clk 0:02:40.6]} 12. Re1 {[%clk 0:02:36.1]}
12... Bd6 {[%clk 0:02:40.7]} 13. f3 {[%clk 0:02:33.4]} 13... Rac8 {[%clk
0:02:35.1]} 14. Ne2 {[%clk 0:02:14.8]} 14... Qxc2 {[%clk 0:02:29.2]} 15. Qxc2
{[%clk 0:02:15.7]} 15... Rxc2 {[%clk 0:02:27.6]} 16. Bc3 {[%clk 0:02:16.6]}
16... Rc8 {[%clk 0:01:50.1]} 17. Nd4 {[%clk 0:02:14.6]} 17... R2xc3 {[%clk
0:01:49.6]} 18. bxc3 {[%clk 0:02:13.4]} 18... Rxc3 {[%clk 0:01:49.1]} 19. Rac1
{[%clk 0:02:13.9]} 19... Rxc1 {[%clk 0:01:09.1]} 20. Rxc1 {[%clk 0:02:14.8]}
20... Kf8 {[%clk 0:01:08.9]} 21. Kf2 {[%clk 0:01:35.8]} 21... Ke7 {[%clk
0:01:07.5]} 22. g3 {[%clk 0:01:31.7]} 22... Nd7 {[%clk 0:00:58.7]} 23. Nb3
{[%clk 0:01:00.4]} 23... Ne5 {[%clk 0:00:52.9]} 24. Ke2 {[%clk 0:00:43.8]} 24...
Nc6 {[%clk 0:00:51.4]} 25. Nd4 {[%clk 0:00:40.2]} 25... Nxd4+ {[%clk 0:00:46.2]}
26. exd4 {[%clk 0:00:41.1]} 26... Kd7 {[%clk 0:00:43.8]} 27. Rb1 {[%clk
0:00:39.1]} 27... Kc6 {[%clk 0:00:42.2]} 28. Kd3 {[%clk 0:00:37.3]} 28... b5
{[%clk 0:00:41.7]} 29. Rc1+ {[%clk 0:00:35.2]} 29... Kb7 {[%clk 0:00:39.5]} 30.
Rb1 {[%clk 0:00:31.4]} 30... Kb6 {[%clk 0:00:33.8]} 31. Rc1 {[%clk 0:00:29.5]}
31... Bc7 {[%clk 0:00:27.3]} 32. f4 {[%clk 0:00:27.4]} 32... a5 {[%clk
0:00:26.9]} 33. Rb1 {[%clk 0:00:25.7]} 33... Bd6 {[%clk 0:00:23.6]} 34. a4
{[%clk 0:00:24.5]} 34... b4 {[%clk 0:00:22]} 35. Kc2 {[%clk 0:00:24.9]} 35...
Be7 {[%clk 0:00:20.2]} 36. Kb3 {[%clk 0:00:24.6]} 36... Bf6 {[%clk 0:00:20]} 37.
Rd1 {[%clk 0:00:22.7]} 37... Kc6 {[%clk 0:00:19.4]} 38. Rc1+ {[%clk 0:00:20.6]}
38... Kb7 {[%clk 0:00:18.6]} 39. Rd1 {[%clk 0:00:20.8]} 39... g6 {[%clk
0:00:17.9]} 40. g4 {[%clk 0:00:19.8]} 40... Bg7 {[%clk 0:00:17.5]} 41. h4 {[%clk
0:00:19]} 41... h5 {[%clk 0:00:17.1]} 42. g5 {[%clk 0:00:18.1]} 42... Bh8 {[%clk
0:00:14.6]} 43. Rd2 {[%clk 0:00:17.6]} 1/2-1/2

[Event "*** Titled Tuesday Blitz"]
[Site "Chess.com"]
[Date "2021.03.02"]
[Round "8"]
[White "alexrustemov"]
[Black "MatyChess1"]
[Result "0-1"]
[WhiteElo "2713"]
[BlackElo "2615"]
[TimeControl "180+1"]
[EndTime "11:30:01 PST"]
[Termination "MatyChess1 won by resignation"]

1. d4 {[%clk 0:03:00.9]} 1... Nf6 {[%clk 0:02:59]} 2. c4 {[%clk 0:03:00.7]} 2...
e6 {[%clk 0:02:58.4]} 3. Nf3 {[%clk 0:03:01.3]} 3... d5 {[%clk 0:02:55.4]} 4.
Nc3 {[%clk 0:03:00]} 4... Bb4 {[%clk 0:02:55.4]} 5. Bg5 {[%clk 0:02:59.4]} 5...
dxc4 {[%clk 0:02:54.7]} 6. e4 {[%clk 0:02:59.2]} 6... b5 {[%clk 0:02:55.1]} 7.
e5 {[%clk 0:02:52.1]} 7... h6 {[%clk 0:02:54.5]} 8. exf6 {[%clk 0:02:50.1]} 8...
hxg5 {[%clk 0:02:54.2]} 9. fxg7 {[%clk 0:02:50]} 9... Rg8 {[%clk 0:02:54.8]} 10.
Be2 {[%clk 0:02:47.2]} 10... Rxg7 {[%clk 0:02:50.2]} 11. O-O {[%clk 0:02:46.6]}
11... Nd7 {[%clk 0:02:46.9]} 12. Nxb5 {[%clk 0:02:45.3]} 12... Nb6 {[%clk
0:02:43.5]} 13. Ne5 {[%clk 0:02:42.2]} 13... Ba6 {[%clk 0:02:06.6]} 14. Nc3
{[%clk 0:02:38.4]} 14... f6 {[%clk 0:01:37.7]} 15. Bh5+ {[%clk 0:02:30.9]} 15...
Kf8 {[%clk 0:01:36.6]} 16. Nc6 {[%clk 0:02:16.6]} 16... Qd6 {[%clk 0:01:36.5]}
17. Nxb4 {[%clk 0:02:15.8]} 17... Qxb4 {[%clk 0:01:37.1]} 18. Qf3 {[%clk
0:02:15.1]} 18... Qe7 {[%clk 0:01:28.8]} 19. Ne4 {[%clk 0:02:10.2]} 19... Nd5
{[%clk 0:01:21.4]} 20. Nc5 {[%clk 0:02:00.5]} 20... Bc8 {[%clk 0:01:19.8]} 21.
Rfe1 {[%clk 0:01:55.2]} 21... Rb8 {[%clk 0:01:18.8]} 22. b3 {[%clk 0:01:53.5]}
22... c3 {[%clk 0:01:16.7]} 23. Bg4 {[%clk 0:01:41.5]} 23... Rb6 {[%clk
0:01:12.4]} 24. Rac1 {[%clk 0:01:36]} 24... Qf7 {[%clk 0:00:52.4]} 25. Bh5
{[%clk 0:01:24.8]} 25... Qe7 {[%clk 0:00:52.1]} 26. Bg4 {[%clk 0:01:08.3]} 26...
Qf7 {[%clk 0:00:51.8]} 27. Qg3 {[%clk 0:01:08.2]} 27... Kg8 {[%clk 0:00:48.8]}
28. Bf3 {[%clk 0:01:07.1]} 28... Nf4 {[%clk 0:00:26.4]} 29. Rxc3 {[%clk
0:01:04.3]} 29... Rd6 {[%clk 0:00:27]} 30. Rd1 {[%clk 0:00:52.2]} 30... Qg6
{[%clk 0:00:22]} 31. h3 {[%clk 0:00:51.2]} 31... Re7 {[%clk 0:00:13.9]} 32. Be4
{[%clk 0:00:51]} 32... f5 {[%clk 0:00:12.1]} 33. Bc2 {[%clk 0:00:41.5]} 33...
Ne2+ {[%clk 0:00:11.6]} 34. Kh2 {[%clk 0:00:32.3]} 34... Nxg3 {[%clk 0:00:12.5]}
35. Rxg3 {[%clk 0:00:32.6]} 35... e5 {[%clk 0:00:13.4]} 36. Re1 {[%clk
0:00:29.7]} 36... Rxd4 {[%clk 0:00:09.8]} 37. Nd3 {[%clk 0:00:24.4]} 37... Qf6
{[%clk 0:00:08.7]} 38. f3 {[%clk 0:00:20.3]} 38... Kf8 {[%clk 0:00:07.8]} 39. h4
{[%clk 0:00:17.8]} 39... Rxh4+ {[%clk 0:00:07.1]} 40. Kg1 {[%clk 0:00:18.4]}
40... f4 {[%clk 0:00:07.6]} 0-1

[Event "*** Titled Tuesday Blitz"]
[Site "Chess.com"]
[Date "2021.03.02"]
[Round "8"]
[White "UmarovSabir"]
[Black "KarateBaby"]
[Result "0-1"]
[WhiteElo "2291"]
[BlackElo "2216"]
[TimeControl "180+1"]
[EndTime "11:30:04 PST"]
[Termination "KarateBaby won by checkmate"]

1. e4 {[%clk 0:02:59.6]} 1... g6 {[%clk 0:02:47.9]} 2. d4 {[%clk 0:02:58.4]}
2... Bg7 {[%clk 0:02:48.8]} 3. Nc3 {[%clk 0:02:58.1]} 3... d6 {[%clk 0:02:41.2]}
4. Be3 {[%clk 0:02:55.9]} 4... a6 {[%clk 0:02:36.4]} 5. h4 {[%clk 0:02:49.1]}
5... h6 {[%clk 0:02:35.8]} 6. a4 {[%clk 0:02:45.6]} 6... Nc6 {[%clk 0:02:19.2]}
7. Qd2 {[%clk 0:02:44]} 7... e5 {[%clk 0:02:12.5]} 8. d5 {[%clk 0:02:33.4]} 8...
Nd4 {[%clk 0:02:10.2]} 9. Nge2 {[%clk 0:02:32]} 9... Nxe2 {[%clk 0:02:04.9]} 10.
Bxe2 {[%clk 0:02:32.9]} 10... Ne7 {[%clk 0:02:05.4]} 11. f3 {[%clk 0:02:01.1]}
11... f5 {[%clk 0:01:51.7]} 12. exf5 {[%clk 0:01:57]} 12... Nxf5 {[%clk
0:01:52.6]} 13. Bf2 {[%clk 0:01:48.6]} 13... O-O {[%clk 0:01:36]} 14. Ne4 {[%clk
0:01:46.2]} 14... Nd4 {[%clk 0:01:27.9]} 15. Bd3 {[%clk 0:01:13.4]} 15... Bf5
{[%clk 0:01:26.2]} 16. h5 {[%clk 0:01:02.8]} 16... g5 {[%clk 0:01:24.9]} 17. Nc3
{[%clk 0:00:47.7]} 17... Bxd3 {[%clk 0:01:09.5]} 18. Qxd3 {[%clk 0:00:47.4]}
18... e4 {[%clk 0:01:08.6]} 19. Nxe4 {[%clk 0:00:45.6]} 19... Nf5 {[%clk
0:01:05.6]} 20. c3 {[%clk 0:00:30]} 20... Qd7 {[%clk 0:01:01.3]} 21. O-O {[%clk
0:00:20.2]} 21... Rae8 {[%clk 0:00:58.9]} 22. g4 {[%clk 0:00:18.6]} 22... Nh4
{[%clk 0:00:44.7]} 23. Bxh4 {[%clk 0:00:18.5]} 23... gxh4 {[%clk 0:00:45.6]} 24.
Rae1 {[%clk 0:00:15.1]} 24... Be5 {[%clk 0:00:43]} 25. Kg2 {[%clk 0:00:14.4]}
25... Kh8 {[%clk 0:00:42.5]} 26. Kh3 {[%clk 0:00:12.3]} 26... Rf4 {[%clk
0:00:39.9]} 27. Kxh4 {[%clk 0:00:10.7]} 27... Rg8 {[%clk 0:00:22.4]} 28. Rg1
{[%clk 0:00:09.9]} 28... Qf7 {[%clk 0:00:18]} 29. Re3 {[%clk 0:00:05.6]} 29...
b5 {[%clk 0:00:13.2]} 30. axb5 {[%clk 0:00:05.2]} 30... axb5 {[%clk 0:00:14.1]}
31. Nf2 {[%clk 0:00:05.7]} 31... Rf8 {[%clk 0:00:12.8]} 32. Nh3 {[%clk
0:00:02.4]} 32... Rxf3 {[%clk 0:00:12.6]} 33. Rxf3 {[%clk 0:00:02.6]} 33... Qxf3
{[%clk 0:00:13.5]} 34. Qxf3 {[%clk 0:00:03]} 34... Rxf3 {[%clk 0:00:14.4]} 35.
Rg2 {[%clk 0:00:02.3]} 35... b4 {[%clk 0:00:12.9]} 36. cxb4 {[%clk 0:00:02.2]}
36... Rb3 {[%clk 0:00:12.8]} 37. Rc2 {[%clk 0:00:02.7]} 37... Rd3 {[%clk
0:00:08]} 38. Rxc7 {[%clk 0:00:02.8]} 38... Bg3# {[%clk 0:00:08.2]} 0-1

[Event "*** Titled Tuesday Blitz"]
[Site "Chess.com"]
[Date "2021.03.02"]
[Round "8"]
[White "zurzan"]
[Black "lacafi"]
[Result "0-1"]
[WhiteElo "2053"]
[BlackElo "2166"]
[TimeControl "180+1"]
[EndTime "11:30:04 PST"]
[Termination "lacafi won on time"]

1. f4 {[%clk 0:03:00.9]} 1... f5 {[%clk 0:02:57.8]} 2. Nf3 {[%clk 0:03:00.8]}
2... Nf6 {[%clk 0:02:58.1]} 3. g3 {[%clk 0:03:01.7]} 3... g6 {[%clk 0:02:58.5]}
4. Bg2 {[%clk 0:03:02.2]} 4... Bg7 {[%clk 0:02:59.4]} 5. O-O {[%clk 0:03:02.7]}
5... O-O {[%clk 0:03:00]} 6. d3 {[%clk 0:03:03.5]} 6... d6 {[%clk 0:03:00.6]} 7.
c3 {[%clk 0:03:03.9]} 7... Qe8 {[%clk 0:03:00.9]} 8. Qc2 {[%clk 0:03:04.1]} 8...
e5 {[%clk 0:02:58.5]} 9. e4 {[%clk 0:03:04.1]} 9... fxe4 {[%clk 0:02:54.2]} 10.
dxe4 {[%clk 0:03:03.5]} 10... Nc6 {[%clk 0:02:54.8]} 11. f5 {[%clk 0:03:01.8]}
11... gxf5 {[%clk 0:02:51.3]} 12. exf5 {[%clk 0:03:01.8]} 12... Ng4 {[%clk
0:02:48.3]} 13. Nh4 {[%clk 0:02:58.9]} 13... Ne7 {[%clk 0:02:33.5]} 14. h3
{[%clk 0:02:57.6]} 14... Nf6 {[%clk 0:02:23.7]} 15. Bg5 {[%clk 0:02:43.9]} 15...
Qh5 {[%clk 0:02:19.4]} 16. Qd2 {[%clk 0:02:22.7]} 16... h6 {[%clk 0:02:03.8]}
17. Be3 {[%clk 0:02:12.7]} 17... e4 {[%clk 0:01:51.3]} 18. Rf4 {[%clk
0:01:53.5]} 18... d5 {[%clk 0:01:45.5]} 19. Na3 {[%clk 0:01:44.4]} 19... c6
{[%clk 0:01:15.6]} 20. Bc5 {[%clk 0:01:43.9]} 20... Rf7 {[%clk 0:01:07]} 21.
Raf1 {[%clk 0:01:40.9]} 21... b6 {[%clk 0:00:43.9]} 22. Bd6 {[%clk 0:01:36.3]}
22... Ba6 {[%clk 0:00:39.4]} 23. c4 {[%clk 0:01:30.3]} 23... Rd8 {[%clk
0:00:37.6]} 24. Be5 {[%clk 0:01:13.7]} 24... Rff8 {[%clk 0:00:31.1]} 25. Rd1
{[%clk 0:00:54.3]} 25... Bc8 {[%clk 0:00:21.7]} 26. cxd5 {[%clk 0:00:52]} 26...
cxd5 {[%clk 0:00:19.4]} 27. Bxe4 {[%clk 0:00:44.9]} 27... dxe4 {[%clk
0:00:13.8]} 28. Qxd8 {[%clk 0:00:45.8]} 28... Rxd8 {[%clk 0:00:13.8]} 29. Rxd8+
{[%clk 0:00:46.3]} 29... Kh7 {[%clk 0:00:14.4]} 30. Bd6 {[%clk 0:00:27.1]} 30...
Ned5 {[%clk 0:00:10.9]} 31. Rxc8 {[%clk 0:00:20.6]} 31... Nxf4 {[%clk
0:00:10.5]} 32. Bxf4 {[%clk 0:00:21.5]} 32... Qe2 {[%clk 0:00:09.7]} 33. Ng2
{[%clk 0:00:20.4]} 33... Nh5 {[%clk 0:00:08.8]} 34. Be3 {[%clk 0:00:19.2]} 34...
Nxg3 {[%clk 0:00:08.6]} 35. Rc1 {[%clk 0:00:16.2]} 35... Nxf5 {[%clk 0:00:08.1]}
36. Bf2 {[%clk 0:00:15.4]} 36... e3 {[%clk 0:00:07.5]} 37. Be1 {[%clk
0:00:13.8]} 37... Be5 {[%clk 0:00:06.8]} 38. Nc2 {[%clk 0:00:13.1]} 38... Qf3
{[%clk 0:00:05.6]} 0-1

[Event "*** Titled Tuesday Blitz"]
[Site "Chess.com"]
[Date "2021.03.02"]
[Round "8"]
[White "QuintilianoR"]
[Black "atalz0"]
[Result "1-0"]
[WhiteElo "2691"]
[BlackElo "2463"]
[TimeControl "180+1"]
[EndTime "11:30:06 PST"]
[Termination "QuintilianoR won on time"]

1. d4 {[%clk 0:03:00.9]} 1... d5 {[%clk 0:02:59.3]} 2. c4 {[%clk 0:03:01.3]}
2... e6 {[%clk 0:02:58]} 3. Nc3 {[%clk 0:03:01.3]} 3... a6 {[%clk 0:02:58.5]} 4.
cxd5 {[%clk 0:03:00.6]} 4... exd5 {[%clk 0:02:59.4]} 5. Bf4 {[%clk 0:02:59.9]}
5... Nf6 {[%clk 0:02:58.5]} 6. e3 {[%clk 0:02:59.2]} 6... Bd6 {[%clk 0:02:59.1]}
7. Bg5 {[%clk 0:02:59]} 7... Be6 {[%clk 0:02:58.4]} 8. Bd3 {[%clk 0:02:57.9]}
8... Nbd7 {[%clk 0:02:58.3]} 9. f4 {[%clk 0:02:57.9]} 9... Bg4 {[%clk
0:02:44.8]} 10. Qc2 {[%clk 0:02:45.8]} 10... Qe7 {[%clk 0:02:42.8]} 11. Kf1
{[%clk 0:02:07.9]} 11... h6 {[%clk 0:02:38.5]} 12. Nxd5 {[%clk 0:02:00.8]} 12...
Qe6 {[%clk 0:02:27.8]} 13. Nxf6+ {[%clk 0:02:00]} 13... gxf6 {[%clk 0:02:18.8]}
14. Bh4 {[%clk 0:01:59.6]} 14... O-O-O {[%clk 0:02:15.1]} 15. Bf2 {[%clk
0:01:53.7]} 15... Qd5 {[%clk 0:01:33.9]} 16. h3 {[%clk 0:01:31.8]} 16... Bh5
{[%clk 0:01:10.9]} 17. e4 {[%clk 0:01:27.7]} 17... Qa5 {[%clk 0:01:06]} 18. f5
{[%clk 0:01:26]} 18... Rdg8 {[%clk 0:00:42.3]} 19. g4 {[%clk 0:01:14.8]} 19...
Bxg4 {[%clk 0:00:42.1]} 20. hxg4 {[%clk 0:01:15.7]} 20... Rxg4 {[%clk
0:00:42.4]} 21. Nf3 {[%clk 0:01:09.1]} 21... Rf4 {[%clk 0:00:40.1]} 22. Rh3
{[%clk 0:01:05.4]} 22... Rg8 {[%clk 0:00:32.7]} 23. a3 {[%clk 0:01:01.5]} 23...
c6 {[%clk 0:00:19.7]} 24. b4 {[%clk 0:00:57.5]} 24... Qc7 {[%clk 0:00:19.7]} 25.
Re1 {[%clk 0:00:55.4]} 25... Rfg4 {[%clk 0:00:11.8]} 26. Ke2 {[%clk 0:00:45.5]}
26... Rg2 {[%clk 0:00:11.1]} 27. Kd1 {[%clk 0:00:41.4]} 27... Bg3 {[%clk
0:00:09.6]} 28. Re2 {[%clk 0:00:36.9]} 28... Qf4 {[%clk 0:00:07.6]} 29. Bxg3
{[%clk 0:00:32.5]} 29... R2xg3 {[%clk 0:00:07.6]} 30. Rxg3 {[%clk 0:00:32.3]}
30... Rxg3 {[%clk 0:00:08.5]} 31. Ne1 {[%clk 0:00:31.3]} 31... Rg1 {[%clk
0:00:05.4]} 32. Qd2 {[%clk 0:00:23.5]} 32... Qg4 {[%clk 0:00:05.5]} 33. Qxh6
{[%clk 0:00:19.6]} 33... Kc7 {[%clk 0:00:05]} 34. Qe3 {[%clk 0:00:19.6]} 34...
Nb6 {[%clk 0:00:03.1]} 35. Kd2 {[%clk 0:00:18]} 35... Na4 {[%clk 0:00:03.2]} 36.
Nf3 {[%clk 0:00:16.3]} 36... Rg2 {[%clk 0:00:02.6]} 37. e5 {[%clk 0:00:16.5]}
37... Rxe2+ {[%clk 0:00:02]} 38. Qxe2 {[%clk 0:00:16.6]} 38... Qf4+ {[%clk
0:00:01.9]} 39. Qe3 {[%clk 0:00:17.1]} 39... Qg3 {[%clk 0:00:02.2]} 40. e6
{[%clk 0:00:17.3]} 40... Nb2 {[%clk 0:00:01.9]} 41. exf7 {[%clk 0:00:17.2]}
41... Qg2+ {[%clk 0:00:02.3]} 42. Qe2 {[%clk 0:00:16.8]} 1-0

[Event "*** Titled Tuesday Blitz"]
[Site "Chess.com"]
[Date "2021.03.02"]
[Round "8"]
[White "Andrakhanova"]
[Black "Atco84"]
[Result "1-0"]
[WhiteElo "2285"]
[BlackElo "2407"]
[TimeControl "180+1"]
[EndTime "11:30:11 PST"]
[Termination "Andrakhanova won by resignation"]

1. c4 {[%clk 0:02:59.1]} 1... e5 {[%clk 0:02:57.6]} 2. g3 {[%clk 0:02:58.6]}
2... Nf6 {[%clk 0:02:57.7]} 3. Bg2 {[%clk 0:02:58.1]} 3... h6 {[%clk 0:02:58.3]}
4. Nc3 {[%clk 0:02:57.9]} 4... Bb4 {[%clk 0:02:58.3]} 5. e3 {[%clk 0:02:56.8]}
5... O-O {[%clk 0:02:56.7]} 6. Nge2 {[%clk 0:02:55.7]} 6... Re8 {[%clk
0:02:54.4]} 7. O-O {[%clk 0:02:53.5]} 7... c6 {[%clk 0:02:40.6]} 8. d4 {[%clk
0:02:49.5]} 8... e4 {[%clk 0:02:36.2]} 9. d5 {[%clk 0:02:49]} 9... d6 {[%clk
0:02:18.2]} 10. dxc6 {[%clk 0:02:47.1]} 10... bxc6 {[%clk 0:02:00.8]} 11. h3
{[%clk 0:02:37.8]} 11... Ba6 {[%clk 0:01:44.1]} 12. b3 {[%clk 0:02:35.3]} 12...
d5 {[%clk 0:01:38]} 13. cxd5 {[%clk 0:02:32.3]} 13... cxd5 {[%clk 0:01:38.9]}
14. Bb2 {[%clk 0:02:27.7]} 14... Nc6 {[%clk 0:01:35.1]} 15. a3 {[%clk
0:02:23.9]} 15... Bf8 {[%clk 0:01:26.5]} 16. Re1 {[%clk 0:02:15.3]} 16... Ne5
{[%clk 0:01:25.3]} 17. Nf4 {[%clk 0:02:08.5]} 17... Bd3 {[%clk 0:01:14.5]} 18.
Nxd3 {[%clk 0:01:52.9]} 18... Nxd3 {[%clk 0:01:12.5]} 19. Re2 {[%clk 0:01:53.1]}
19... a5 {[%clk 0:01:06]} 20. Rd2 {[%clk 0:01:46.8]} 20... Rb8 {[%clk
0:01:02.3]} 21. Bf1 {[%clk 0:01:42.9]} 21... Nxb2 {[%clk 0:00:53.2]} 22. Rxb2
{[%clk 0:01:43.8]} 22... Bd6 {[%clk 0:00:44.1]} 23. Rd2 {[%clk 0:01:28]} 23...
Be5 {[%clk 0:00:25.5]} 24. Rc1 {[%clk 0:01:26.6]} 24... Qb6 {[%clk 0:00:20.1]}
25. Nxd5 {[%clk 0:01:18.4]} 25... Nxd5 {[%clk 0:00:21]} 26. Rxd5 {[%clk
0:01:18.9]} 26... Qxb3 {[%clk 0:00:21.6]} 27. Qxb3 {[%clk 0:01:18.5]} 27... Rxb3
{[%clk 0:00:22.5]} 28. Rxa5 {[%clk 0:01:18.8]} 28... Bb2 {[%clk 0:00:20.1]} 29.
Rc7 {[%clk 0:01:04.6]} 29... Rxa3 {[%clk 0:00:18.7]} 30. Rb5 {[%clk 0:00:58.4]}
30... Be5 {[%clk 0:00:18.5]} 31. Rd7 {[%clk 0:00:53.1]} 31... Rc3 {[%clk
0:00:15]} 32. Kg2 {[%clk 0:00:52.5]} 32... Rc2 {[%clk 0:00:14.7]} 33. Rbb7
{[%clk 0:00:50.4]} 33... g5 {[%clk 0:00:14]} 34. Rxf7 {[%clk 0:00:48.6]} 34...
Rf8 {[%clk 0:00:14.4]} 35. Rxf8+ {[%clk 0:00:44.7]} 35... Kxf8 {[%clk
0:00:15.3]} 36. Rb4 {[%clk 0:00:39.4]} 36... Bc3 {[%clk 0:00:15.2]} 37. Rc4
{[%clk 0:00:36.8]} 37... Ke7 {[%clk 0:00:15.7]} 38. Be2 {[%clk 0:00:33.4]} 38...
Kd6 {[%clk 0:00:15.9]} 39. Bd1 {[%clk 0:00:29.3]} 39... Rc1 {[%clk 0:00:15.9]}
40. Bg4 {[%clk 0:00:25.6]} 40... Ke5 {[%clk 0:00:15.9]} 41. Bh5 {[%clk
0:00:24.2]} 41... Bd2 {[%clk 0:00:15.6]} 42. Ra4 {[%clk 0:00:22]} 42... Rc2
{[%clk 0:00:14.4]} 43. Ra3 {[%clk 0:00:20.4]} 43... Be1 {[%clk 0:00:13.7]} 44.
Kh1 {[%clk 0:00:17.7]} 44... Bxf2 {[%clk 0:00:13.9]} 45. Ra5+ {[%clk 0:00:16.5]}
45... Kd6 {[%clk 0:00:13.4]} 46. Bg6 {[%clk 0:00:17.4]} 46... Bxg3 {[%clk
0:00:13]} 47. Bxe4 {[%clk 0:00:17.2]} 47... Bf2 {[%clk 0:00:13.1]} 48. Bxc2
{[%clk 0:00:16.4]} 1-0